fUSD/lending_fUSD_20240415
["ID","MTS","AMOUNT","RATE_DAILY","PERIOD"]
[322641450,1713157832827,-173.73,0.00020031,2]
[322641451,1713157832836,-161.8,0.00020031,2]
[322641452,1713157832846,-499.99,0.00020031,2]
[322641453,1713157832856,-219.99,0.00020132,2]
[322641454,1713157832866,-152.25,0.00020162,2]
[322641456,1713157832877,-200.0,0.00020213,2]
[322641459,1713157832887,-344.0,0.00020246,2]
[322641462,1713157832897,-736.0,0.00020246,2]
[322641465,1713157832908,-1000.0,0.00020271,2]
[322641467,1713157832918,-519.07030047,0.000206,2]
[322641468,1713157832927,-1401.635,0.0002079,2]
[322641469,1713157832937,-461.0,0.0002079,2]
[322641470,1713157832947,-1253.0,0.0002079,2]
[322641471,1713157832958,-1238.641,0.0002079,2]
[322641472,1713157832968,-541.0,0.0002079,2]
[322641473,1713157832981,-2086.447,0.0002079,2]
[322641474,1713157832992,-462.705,0.0002079,2]
[322641475,1713157833003,-806.0,0.0002079,2]
[322641476,1713157833013,-282.266,0.0002079,2]
[322641477,1713157833024,-611.796,0.0002079,2]
[322641478,1713157833034,-1148.699,0.0002079,2]
[322641479,1713157833044,-399.0,0.0002079,2]
[322641480,1713157833054,-1472.0,0.0002079,2]
[322641481,1713157833064,-3044.0,0.0002079,2]
[322641482,1713157833074,-150.684,0.0002079,2]
[322641483,1713157833084,-150.615,0.0002079,2]
[322641484,1713157833094,-1638.0,0.0002079,2]
[322641485,1713157833104,-2441.0,0.0002079,2]
[322641486,1713157833114,-355.0,0.0002079,2]
[322641487,1713157833124,-216.0,0.0002079,2]
[322641488,1713157833134,-444.544,0.0002079,2]
[322641489,1713157833143,-209.7343,0.000208,2]
[322641490,1713157833153,-5521.752511,0.000208,2]
[322641491,1713157833200,-363.247489,0.000208,2]
[322641492,1713157833210,-2504.89,0.000208,2]
[322641493,1713157833219,-420.674,0.000208,2]
[322641494,1713157833228,-64.87549648,0.000208,2]
[322641588,1713157840131,-37570.12450352,0.000208,2]
[322641589,1713157840142,-198.67893801,0.00020899,2]
[322641590,1713157840152,-21979.8498,0.000209,2]
[322641591,1713157840162,-198.67893801,0.000209,2]
[322641592,1713157840171,-2267.41912289,0.000209,2]
[322641593,1713157840181,-318.46421819,0.000209,2]
[322641594,1713157840190,-365.60989,0.0002092,2]
[322641595,1713157840200,-161.97,0.0002099,2]
[322641596,1713157840209,-161.97,0.0002099,2]
[322641597,1713157840218,-161.97,0.0002099,2]
[322641598,1713157840227,-294.10313555,0.00020998,2]
[322641599,1713157840236,-160.041414,0.00020998,2]
[322641600,1713157840246,-157.041414,0.00020998,2]
[322641601,1713157840258,-157.041414,0.00020998,2]
[322641602,1713157840267,-157.041414,0.00020998,2]
[322641603,1713157840276,-157.041414,0.00020998,2]
[322641604,1713157840285,-157.041414,0.00020998,2]
[322641605,1713157840294,-157.041414,0.00020998,2]
[322641606,1713157840304,-157.041414,0.00020998,2]
[322641607,1713157840313,-157.041414,0.00020998,2]
[322641608,1713157840322,-647.36811367,0.00020998,2]
[322641609,1713157840331,-60127.5216888,0.00020998,2]
[322641610,1713157840340,-2462.1586223,0.00020998,2]
[322641611,1713157840349,-5410.7955695,0.00020998,2]
[322641612,1713157840358,-2414.7496972,0.00020998,2]
[322641613,1713157840367,-13723.9492861,0.00020998,2]
[322641614,1713157840376,-696.43464681,0.00020999,2]
[322641615,1713157840386,-155.04055823,0.00020999,2]
[322641616,1713157840395,-155.0,0.00020999,2]
[322641617,1713157840404,-157.041414,0.00020999,2]
[322641618,1713157840413,-157.041414,0.00020999,2]
[322641619,1713157840422,-157.041414,0.00020999,2]
[322641620,1713157840431,-157.041414,0.00020999,2]
[322641621,1713157840440,-157.041414,0.00020999,2]
[322641622,1713157840450,-157.041414,0.00020999,2]
[322641623,1713157840460,-157.041414,0.00020999,2]
[322641624,1713157840469,-157.041414,0.00020999,2]
[322641625,1713157840479,-157.041414,0.00020999,2]
[322641626,1713157840488,-157.041414,0.00020999,2]
[322641627,1713157840497,-7578183.55329114,0.00021,2]
[322641628,1713157841725,-493.7442,0.00021,2]
[322641629,1713157841737,-339.3,0.00021,2]
[322641652,1713157844663,-670.0,0.00019178,2]
[322641653,1713157844672,-413.60704189,0.00020274,2]
[322641654,1713157844684,-256.39295811,0.00020274,2]
[322641655,1713157844693,-180.60156207,0.00021,2]
[322641679,1713157846439,-509.43092094,0.00021,2]
[322641680,1713157846526,-25513.76186904,0.00021,2]
[322641681,1713157846560,-261644.97261052,0.00021,2]
[322641682,1713157846575,-1368.84711061,0.00021,2]
[322641684,1713158008274,342.92,0.00017821,2]
[322641685,1713158054187,300.7221709,0.00017821,2]
[322641686,1713158071055,300.7221709,0.00017821,2]
[322641687,1713158088159,300.7221709,0.00017821,2]
[322641690,1713158107009,300.7221709,0.00017821,2]
[322641692,1713158123959,300.7221709,0.00017821,2]
[322641693,1713158142734,300.7221709,0.00017821,2]
[322641694,1713158162484,300.7221709,0.00017821,2]
[322641695,1713158180447,300.7221709,0.00017821,2]
[322641696,1713158197960,300.7221709,0.00017821,2]
[322641697,1713158214884,300.7221709,0.00017821,2]
[322641698,1713158230048,192.94665678,0.00017821,2]
[322641700,1713158598183,325.77,0.00018213,2]
[322641701,1713158782314,-683.82998877,0.000225,15]
[322641702,1713158782348,-160.0815809,0.00025,14]
[322641710,1713159015323,219.99,0.00029437,120]
[322641739,1713159031662,-616.81603865,0.00019513,2]
[322641740,1713159031672,-264.01498696,0.00019514,2]
[322641741,1713159031681,-163.3862013,0.00019518,2]
[322641742,1713159031692,-105.64527656,0.00019618,2]
[322641743,1713159031723,-650.8,0.00019618,2]
[322641744,1713159031735,-273.55472344,0.00019618,2]
[322641745,1713159031745,-219.99,0.00019625,2]
[322641746,1713159031755,-173.73,0.00019625,2]
[322641747,1713159031764,-283.89545907,0.000197,2]
[322641748,1713159031773,-185.23907331,0.00019712,2]
[322641749,1713159031785,-2717.49092669,0.00019712,2]
[322641750,1713159031795,-163.3862013,0.00019864,2]
[322641751,1713159031804,-150.77,0.00019869,2]
[322641752,1713159031813,-1000.0,0.00019966,2]
[322641753,1713159031823,-155.0,0.0002,2]
[322641754,1713159031832,-500.0,0.00020005,2]
[322641755,1713159031841,-2290.65,0.00020087,2]
[322641756,1713159031851,-150.0,0.00020108,2]
[322641757,1713159031860,-150.0,0.00020108,2]
[322641758,1713159031869,-176.69,0.00020109,2]
[322641759,1713159031878,-163.3862013,0.00020209,2]
[322641760,1713159031887,-150.77,0.00020387,2]
[322641761,1713159031896,-325.77,0.00020477,2]
[322641762,1713159031905,-163.3862013,0.00020555,2]
[322641763,1713159031914,-167.0,0.00020628,2]
[322641764,1713159031923,-294.2524327,0.00020788,2]
[322641765,1713159031933,-2304.6749,0.0002079,2]
[322641766,1713159031943,-150.0,0.00020798,2]
[322641767,1713159031952,-30000.0,0.000209,2]
[322641768,1713159031962,-453.38142481,0.000209,2]
[322641769,1713159031972,-203.56111944,0.000209,2]
[322641770,1713159031982,-10569.78014112,0.000209,2]
[322641771,1713159031991,-163.3862013,0.000209,2]
[322641772,1713159032001,-4405.68731871,0.000209,2]
[322641773,1713159032010,-427.74871094,0.000209,2]
[322641774,1713159032020,-150.77,0.00020904,2]
[322641775,1713159032030,-157.041415,0.00020997,2]
[322641776,1713159032040,-157.041415,0.00020997,2]
[322641777,1713159032051,-157.041415,0.00020997,2]
[322641778,1713159032061,-157.041415,0.00020997,2]
[322641779,1713159032072,-157.041415,0.00020997,2]
[322641780,1713159032082,-157.041415,0.00020997,2]
[322641781,1713159032092,-157.041415,0.00020997,2]
[322641782,1713159032101,-157.041415,0.00020997,2]
[322641783,1713159032111,-157.041415,0.00020997,2]
[322641784,1713159032122,-858.72191135,0.00020998,2]
[322641785,1713159032132,-1260.63443229,0.00020998,2]
[322641786,1713159032142,-155.0,0.00020998,2]
[322641787,1713159032152,-696.43464681,0.00020998,2]
[322641788,1713159032162,-157.041415,0.00020998,2]
[322641789,1713159032172,-157.041415,0.00020998,2]
[322641790,1713159032182,-155.04055823,0.00020998,2]
[322641791,1713159032192,-157.041415,0.00020998,2]
[322641792,1713159032202,-157.041415,0.00020998,2]
[322641793,1713159032211,-157.041415,0.00020998,2]
[322641794,1713159032221,-331.41851614,0.00020998,2]
[322641795,1713159032233,-186.54689672,0.00020998,2]
[322641796,1713159032243,-3753.78062122,0.00020998,2]
[322641797,1713159032254,-3004.7397024,0.00020998,2]
[322641798,1713159032264,-1391.56308348,0.00020998,2]
[322641799,1713159032274,-16139.27705936,0.00020998,2]
[322641800,1713159032285,-294.10313555,0.00020998,2]
[322641801,1713159032294,-39663.6396215,0.00020999,2]
[322641802,1713159032305,-8969.31359153,0.00020999,2]
[322641803,1713159032316,-173.97005027,0.00020999,2]
[322641804,1713159032326,-157.041415,0.00020999,2]
[322641805,1713159032337,-157.041415,0.00020999,2]
[322641806,1713159032349,-157.041415,0.00020999,2]
[322641807,1713159032359,-157.041415,0.00020999,2]
[322641808,1713159032370,-157.041415,0.00020999,2]
[322641809,1713159032380,-157.041415,0.00020999,2]
[322641810,1713159032391,-157.041415,0.00020999,2]
[322641811,1713159032402,-157.041415,0.00020999,2]
[322641812,1713159032412,-500.0,0.00020999,2]
[322641813,1713159032422,-500.0,0.00020999,2]
[322641814,1713159032433,-500.0,0.00020999,2]
[322641815,1713159032444,-267.91079645,0.00020999,2]
[322641816,1713159032454,-75375.49241216,0.00021,2]
[322641817,1713159032800,-579.86979008,0.00021,2]
[322641818,1713159032813,-314.96368154,0.00021,2]
[322641819,1713159032827,-1358.97542138,0.00021,2]
[322641820,1713159033181,-1750.0,0.00021,2]
[322641837,1713159037565,-1235.47644,0.00021,2]
[322641838,1713159037637,-7667743.3714753,0.00021,2]
[322641839,1713159037715,-27029.81150125,0.00021,2]
[322641875,1713159038320,-43394.10765938,0.00021,2]
[322641988,1713159040678,-150.0,0.00020757,2]
[322641989,1713159040689,-1862.3229701,0.00021,2]
[322641990,1713159040701,-751.81939451,0.00021,2]
[322641991,1713159041551,-344.62235284,0.00021,2]
[322641992,1713159041650,-314.85,0.00021,2]
[322641993,1713159041789,-629.66,0.00021,2]
[322641994,1713159041802,-400.58463,0.00021,2]
[322641995,1713159041813,-1301.84,0.00021,2]
[322641996,1713159041824,-298.8262,0.00021,2]
[322641997,1713159041861,-6484.70076798,0.00021,2]
[322642014,1713159043410,-339.64000026,0.00021,2]
[322642015,1713159043422,-307.29999984,0.00021,2]
[322642016,1713159043513,-2367.68979258,0.00021,2]
[322642017,1713159043582,-500.34584399,0.00021,2]
[322642018,1713159043593,-628.18,0.00021,2]
[322642019,1713159043647,-31102.94244843,0.00021,2]
[322642027,1713159045773,-616.81603865,0.00020999,2]
[322642028,1713159045783,-529.86187443,0.00021,2]
[322642029,1713159045795,-3607.75075138,0.00021,2]
[322642030,1713159045843,-1111.50248093,0.00021,2]
[322642031,1713159045854,-918.75679,0.00021,2]
[322642032,1713159045872,-627.44,0.00021,2]
[322642033,1713159070826,436.41,0.00018851,2]
[322642039,1713159105429,2662.84304009,0.00025539,28]
[322642044,1713159707125,414.58,0.0001778,2]
[322642124,1713160204672,393.85,0.00017456,2]
[322642147,1713160232122,-645.24728945,0.00019344,2]
[322642148,1713160232132,-500.0,0.00019345,2]
[322642149,1713160232141,-1629.95,0.00019353,2]
[322642150,1713160232150,-200.0,0.00019355,2]
[322642151,1713160232161,-362.0,0.00019409,2]
[322642152,1713160232171,-150.0,0.00019415,2]
[322642153,1713160232180,-150.0,0.00019462,2]
[322642154,1713160232189,-248.5,0.00019531,2]
[322642156,1713160232199,-298.13448446,0.00019592,2]
[322642158,1713160232211,-501.86551554,0.00019592,2]
[322642160,1713160232220,-200.0,0.00019605,2]
[322642162,1713160232229,-713.19820364,0.00019639,2]
[322642165,1713160232278,-272.33179636,0.00019639,2]
[322642166,1713160232288,-12474.96,0.00019655,2]
[322642168,1713160232297,-393.85,0.00019719,2]
[322642170,1713160232306,-154.28,0.0001974,2]
[322642172,1713160232316,-2341.75803624,0.00019781,2]
[322642174,1713160232327,-538.25216763,0.00019781,2]
[322642182,1713160232406,-656.10899353,0.00019781,2]
[322642183,1713160232434,-2432.75,0.00019781,2]
[322642184,1713160232446,-262.2008026,0.00019781,2]
[322642185,1713160232455,-154.28,0.00019809,2]
[322642186,1713160232464,-154.28,0.00019877,2]
[322642187,1713160232473,-154.28,0.00019946,2]
[322642188,1713160232482,-154.28,0.00020015,2]
[322642189,1713160232492,-3.29872024,0.00020083,2]
[322642219,1713160238264,-150.98127976,0.00020083,2]
[322642221,1713160238274,-154.28,0.00020152,2]
[322642223,1713160238283,-154.28,0.0002022,2]
[322642225,1713160238292,-576.70323075,0.00020246,2]
[322642227,1713160238304,-76.29676925,0.00020246,2]
[322642229,1713160238313,-200.0,0.0002028,2]
[322642231,1713160238323,-176.38,0.0002028,2]
[322642233,1713160238332,-154.28,0.00020289,2]
[322642235,1713160238341,-154.28,0.00020357,2]
[322642237,1713160238351,-165.7,0.00020358,2]
[322642239,1713160238360,-2176.8,0.00020414,2]
[322642241,1713160238370,-154.28,0.00020426,2]
[322642243,1713160238379,-2891.53,0.00020426,2]
[322642245,1713160238389,-185.6188098,0.00020431,2]
[322642247,1713160238398,-154.28,0.00020495,2]
[322642249,1713160238407,-154.28,0.00020563,2]
[322642251,1713160238418,-154.28,0.00020632,2]
[322642253,1713160238427,-154.28,0.000207,2]
[322642255,1713160238436,-154.28,0.00020769,2]
[322642257,1713160238445,-244.82661755,0.00020789,2]
[322642259,1713160238455,-10000.0,0.000209,2]
[322642261,1713160238464,-635.48354132,0.000209,2]
[322642263,1713160238473,-206.46540009,0.000209,2]
[322642265,1713160238482,-858.72191135,0.00020998,2]
[322642267,1713160238491,-446.06564731,0.00020998,2]
[322642269,1713160238500,-439.29253902,0.00020998,2]
[322642271,1713160238510,-161.24130101,0.00020998,2]
[322642273,1713160238519,-312.88641742,0.00020998,2]
[322642275,1713160238528,-160.72739849,0.00020999,2]
[322642277,1713160238538,-157.041415,0.00020999,2]
[322642279,1713160238547,-157.041415,0.00020999,2]
[322642281,1713160238558,-157.041415,0.00020999,2]
[322642284,1713160238568,-157.041415,0.00020999,2]
[322642285,1713160238578,-157.041415,0.00020999,2]
[322642287,1713160238587,-157.041415,0.00020999,2]
[322642289,1713160238596,-157.041415,0.00020999,2]
[322642291,1713160238605,-44135.40926049,0.00021,2]
[322642297,1713160238649,-638.25057478,0.00021,2]
[322642433,1713160240731,-2025.65425398,0.00021,2]
[322642434,1713160240793,-19259.18755817,0.00021,2]
[322642435,1713160240853,-2564969.18835231,0.00021,2]
[322642436,1713160240862,-715.62335084,0.00021,2]
[322642437,1713160240872,-545.11,0.00021,2]
[322642438,1713160240881,-503.38,0.00021,2]
[322642439,1713160240891,-4219300.4322592,0.00021,2]
[322642440,1713160240900,-265.967,0.00021,2]
[322642441,1713160240909,-155.351,0.00021,2]
[322642442,1713160240922,-150.0,0.00021,2]
[322642443,1713160240931,-150.0,0.00021,2]
[322642444,1713160240940,-891431.3592363,0.00021,2]
[322642445,1713160240989,-26755.60252036,0.00021,2]
[322642446,1713160241377,-408.97283714,0.00021,2]
[322642447,1713160241388,-551.25656863,0.00021,2]
[322642448,1713160241399,-795.89,0.00021,2]
[322642484,1713160243813,-149541.81414752,0.00021,2]
[322642490,1713160246073,-13557.72976,0.00021,2]
[322642491,1713160246101,-624.56983749,0.00021,2]
[322642492,1713160246112,-547.84176427,0.00021,2]
[322642493,1713160246242,-7110.67508,0.00021,2]
[322642494,1713160246254,-480.16982061,0.00021,2]
[322642495,1713160246416,-7019.907,0.00021,2]
[322642496,1713160246429,-5007.09699,0.00021,2]
[322642498,1713160246441,-7307.79904,0.00021,2]
[322642499,1713160246452,-729.84447546,0.00021,2]
[322642500,1713160246463,-3150.39333094,0.00021,2]
[322642512,1713160655106,409.48,0.00017871,2]
[322642514,1713161170814,389.0,0.00017592,2]
[322642522,1713161256276,500.0,0.00028,30]
[322642523,1713161268860,500.0,0.00028,60]
[322642524,1713161303333,502.0,0.00022,10]
[322642605,1713161374187,-315.13949121,0.00019177,2]
[322642606,1713161374212,-597.0,0.00019178,2]
[322642607,1713161374238,-150.0,0.00019244,2]
[322642608,1713161374261,-8437.86050879,0.00019245,2]
[322642609,1713161418638,-800.0,0.00019245,2]
[322642628,1713161432038,-603.0,0.00019178,2]
[322642629,1713161432048,-2457.84949121,0.00019245,2]
[322642630,1713161432061,-500.0,0.00019339,2]
[322642631,1713161432071,-250.0,0.00019484,2]
[322642632,1713161432081,-433.15,0.00019514,2]
[322642633,1713161432095,-2410.95,0.00019559,2]
[322642634,1713161432106,-640.0,0.00019589,2]
[322642635,1713161432116,-278.18,0.0001962,2]
[322642636,1713161432127,-4120.37,0.0001965,2]
[322642637,1713161432136,-342.77,0.0001966,2]
[322642638,1713161432146,-342.77,0.00019714,2]
[322642639,1713161432155,-342.77,0.00019768,2]
[322642640,1713161432166,-342.77,0.00019822,2]
[322642641,1713161432175,-389.0,0.00019856,2]
[322642642,1713161432184,-342.77,0.00019876,2]
[322642643,1713161432194,-4548.94970923,0.000199,3]
[322642644,1713161432203,-342.77,0.00019929,2]
[322642645,1713161432213,-2695.62171515,0.00019948,7]
[322642646,1713161432222,-342.77,0.00019983,2]
[322642647,1713161432232,-289.86352191,0.0002,2]
[322642648,1713161432241,-847.1806266,0.0002,2]
[322642649,1713161432251,-342.77,0.00020037,2]
[322642650,1713161432261,-342.77,0.00020091,2]
[322642651,1713161432270,-342.77,0.00020145,2]
[322642652,1713161432279,-342.77,0.00020199,2]
[322642653,1713161432288,-342.77,0.00020253,2]
[322642654,1713161432298,-603.0,0.00020274,2]
[322642655,1713161432310,-342.77,0.00020307,2]
[322642656,1713161432319,-342.77,0.00020361,2]
[322642657,1713161432328,-342.77,0.00020415,2]
[322642658,1713161432338,-360.0,0.0002046,2]
[322642659,1713161432347,-342.77,0.00020469,2]
[322642660,1713161432357,-342.77,0.00020523,2]
[322642661,1713161432367,-342.77,0.00020576,2]
[322642662,1713161432376,-342.77,0.0002063,2]
[322642663,1713161432385,-342.77,0.00020684,2]
[322642664,1713161432395,-1920.56242,0.0002079,2]
[322642665,1713161432405,-17260.207,0.00020825,2]
[322642666,1713161432415,-4919.723,0.00020825,2]
[322642667,1713161432424,-393.894,0.000209,2]
[322642668,1713161432434,-880.604,0.000209,2]
[322642669,1713161432443,-1000.0,0.000209,2]
[322642670,1713161432452,-317.08409587,0.000209,2]
[322642672,1713161432462,-156.61465412,0.0002099,2]
[322642673,1713161432471,-156.61465412,0.0002099,2]
[322642674,1713161432480,-173.57,0.0002099,2]
[322642675,1713161432490,-173.57,0.0002099,2]
[322642676,1713161432499,-173.57,0.0002099,2]
[322642677,1713161432509,-173.57,0.0002099,2]
[322642678,1713161432518,-173.57,0.0002099,2]
[322642679,1713161432528,-18722.630593,0.00020998,2]
[322642680,1713161432537,-450.99681387,0.00020999,2]
[322642681,1713161432547,-1296.33217712,0.00020999,2]
[322642682,1713161432559,-2777.30262473,0.00020999,2]
[322642683,1713161432568,-122540.26984079,0.00021,2]
[322642684,1713161432580,-470.02992428,0.00021,2]
[322642685,1713161432613,-655.82,0.00021,2]
[322642686,1713161432624,-274.46724758,0.00021,2]
[322642687,1713161432636,-316.71,0.00021,2]
[322642688,1713161432762,-1743.09709085,0.00021,2]
[322642689,1713161432811,-3281.88842145,0.00021,2]
[322642690,1713161432823,-3902.17262218,0.00021,2]
[322642691,1713161432849,-1387.41717452,0.00021,2]
[322642692,1713161432860,-63369.28578,0.00021,2]
[322642693,1713161432873,-6362.48741435,0.00021,2]
[322642724,1713161438595,-15432.88508725,0.00021,2]
[322642725,1713161438608,-7678186.41119865,0.00021,2]
[322642758,1713161440278,-6574.9532,0.00021,2]
[322642759,1713161440295,-639.41638854,0.00021,2]
[322642762,1713161440523,-500.0,0.00021,2]
[322642763,1713161440535,-671.10229479,0.00021,2]
[322642764,1713161440546,-2411.97477768,0.00021,2]
[322642765,1713161440802,-465.13515,0.00021,2]
[322642766,1713161440905,-269.75099589,0.00021,2]
[322642779,1713161443004,-354.43170181,0.00021,2]
[322642780,1713161443019,-1108.02396303,0.00021,2]
[322642782,1713161443345,-506.7485472,0.00021,2]
[322642783,1713161443357,-431.71240408,0.00021,2]
[322642784,1713161443515,-386.64605795,0.00021,2]
[322642790,1713161667897,-155.0,0.00019144,2]
[322642791,1713161684082,-15845.0,0.00019145,2]
[322642792,1713161712117,369.05,0.00018114,2]
[322642794,1713161826730,-155.0,0.00019144,2]
[322642795,1713161826751,-756.0565,0.00019145,2]
[322642796,1713161826774,-192.0,0.00019828,2]
[322642797,1713161826795,-1721.27,0.00019881,2]
[322642798,1713161826819,-162.54969345,0.000199,2]
[322642799,1713161904624,-200.0,0.0002,7]
[322642800,1713161904646,-500.0,0.000201,7]
[322642801,1713161904669,-800.0,0.000202,7]
[322642802,1713161904690,-1100.0,0.000203,7]
[322642803,1713161904713,-1400.0,0.000204,7]
[322642804,1713161904736,-200.0,0.000205,7]
[322642805,1713161904758,-200.0,0.000206,7]
[322642806,1713161904787,-200.0,0.000207,7]
[322642807,1713161904809,-200.0,0.000208,7]
[322642808,1713161904838,-1100.0,0.000209,7]
[322642810,1713162203991,350.59,0.00018619,2]
[322642848,1713162543601,210.78,0.0002099,15]
[322642849,1713162543948,150.5,0.0002099,15]
[322642850,1713162544556,274.5,0.0002098,15]
[322642955,1713162633039,-200.0,0.00019906,2]
[322642956,1713162633049,-488.0,0.00019906,2]
[322642957,1713162633058,-10.40593279,0.00019928,2]
[322642958,1713162633069,-2562.6182,0.00019928,2]
[322642959,1713162633086,-87.303899,0.00019928,2]
[322642960,1713162633096,-200.0,0.00019929,2]
[322642961,1713162633105,-173.43,0.0002004,2]
[322642962,1713162633114,-164.43,0.00020097,2]
[322642963,1713162633124,-135.17559395,0.00020118,2]
[322642964,1713162633158,-418.98440605,0.00020118,2]
[322642965,1713162633167,-512.0,0.00020155,2]
[322642966,1713162633177,-1407.95103965,0.00020449,2]
[322642967,1713162633197,-177.15,0.00020459,2]
[322642968,1713162633208,-150.99,0.00020578,2]
[322642969,1713162633220,-150.0,0.00020656,2]
[322642970,1713162633229,-150.0,0.00020656,2]
[322642971,1713162633238,-150.0,0.00020656,2]
[322642972,1713162633248,-170.59,0.00020657,2]
[322642973,1713162633257,-1098.83,0.00020657,2]
[322642974,1713162633267,-150.99,0.00020657,2]
[322642975,1713162633278,-3452.02729634,0.0002076,2]
[322642976,1713162633289,-1156.30504887,0.000208,2]
[322642977,1713162633300,-1407.95103965,0.00020816,2]
[322642978,1713162633311,-1000.0,0.00020832,2]
[322642979,1713162633322,-350.59,0.00020883,2]
[322642980,1713162633332,-153.60520373,0.00020899,2]
[322642981,1713162633342,-171.16848939,0.00020899,2]
[322642982,1713162633351,-153.60520368,0.00020899,2]
[322642983,1713162633361,-153.60520368,0.00020899,2]
[322642984,1713162633371,-153.60520368,0.00020899,2]
[322642985,1713162633381,-153.60520368,0.000209,2]
[322642986,1713162633390,-153.60520368,0.000209,2]
[322642987,1713162633400,-153.60520368,0.000209,2]
[322642988,1713162633409,-153.60520368,0.000209,2]
[322642989,1713162633419,-705.4882,0.000209,2]
[322642990,1713162633428,-500.0,0.000209,2]
[322642991,1713162633439,-153.60520368,0.000209,2]
[322642992,1713162633449,-336.63875025,0.000209,2]
[322642993,1713162633462,-8349.9127999,0.000209,2]
[322642994,1713162633474,-1084.01887985,0.000209,2]
[322642995,1713162633483,-1084.01887985,0.000209,2]
[322642996,1713162633493,-199.59184815,0.00020998,2]
[322642997,1713162633503,-526.69659646,0.00020998,2]
[322642998,1713162633514,-616.61601776,0.00020999,2]
[322642999,1713162633524,-67701.0163801,0.00020999,2]
[322643000,1713162633535,-37641.89988978,0.00020999,2]
[322643001,1713162633627,-1558.77100647,0.00020999,2]
[322643002,1713162633639,-10113.15028465,0.00020999,2]
[322643003,1713162633648,-8375.1377346,0.00020999,2]
[322643004,1713162633658,-5667.2713834,0.00020999,2]
[322643005,1713162633667,-323.8189941,0.00020999,2]
[322643006,1713162633676,-554.3421485,0.00020999,2]
[322643007,1713162633686,-1240.24497475,0.00020999,2]
[322643008,1713162633698,-8961.85915535,0.00020999,2]
[322643009,1713162633707,-54564.87740315,0.00021,2]
[322643010,1713162633783,-22495.48,0.00021,2]
[322643011,1713162633804,-2148.0,0.00021,2]
[322643012,1713162633816,-2643.52,0.00021,2]
[322643013,1713162633828,-1934.76,0.00021,2]
[322643075,1713162640997,-322.29973731,0.00020999,2]
[322643076,1713162641007,-753.17936823,0.00021,2]
[322643077,1713162641083,-6469.18827512,0.00021,2]
[322643078,1713162641119,-1332.60558608,0.00021,2]
[322643079,1713162641130,-8577.545578,0.00021,2]
[322643080,1713162641201,-550.55236469,0.00021,2]
[322643081,1713162641213,-1040.52072634,0.00021,2]
[322643082,1713162641342,-132570.61064336,0.00021,2]
[322643083,1713162641682,-442.54593719,0.00021,2]
[322643084,1713162641710,-7678186.41119865,0.00021,2]
[322643085,1713162641723,-1349.90711029,0.00021,2]
[322643086,1713162641777,-198289.24865273,0.00021,2]
[322643107,1713162643115,-973.13641574,0.00021,2]
[322643110,1713162643133,-322.89829793,0.00021,2]
[322643143,1713162643365,-15446.87788349,0.00021,2]
[322643144,1713162643725,-26487.43145201,0.00021,2]
[322643145,1713162643737,-1436.28626411,0.00021,2]
[322643146,1713162643819,-860.59239286,0.00021,2]
[322643147,1713162643832,-355.7173662,0.00021,2]
[322643148,1713162643843,-619.8331129,0.00021,2]
[322643279,1713162644827,-33076.76654089,0.00021,2]
[322643285,1713162644876,-1330.03109,0.00021,2]
[322643311,1713162645133,-6059.61881958,0.00021,2]
[322643312,1713162645145,-13253.46591064,0.00021,2]